lending/lending_fUSD_20251106
["ID","MTS","AMOUNT","RATE_DAILY","PERIOD"]
[393307143,1762445442707,-500.0,0.0001796,2]
[393307144,1762445442716,-162.44257324,0.0001796,2]
[393307145,1762445442726,-150.0,0.0001796,2]
[393307146,1762445442735,-150.0,0.0001796,2]
[393307147,1762445442745,-150.0,0.0001796,2]
[393307148,1762445442754,-500.0,0.0001796,2]
[393307149,1762445442764,-150.0,0.0001796,2]
[393307150,1762445442774,-500.0,0.0001796,2]
[393307151,1762445442783,-150.0,0.0001796,2]
[393307152,1762445442794,-500.0,0.0001796,2]
[393307153,1762445442803,-500.0,0.00017973,2]
[393307155,1762445442813,-569.98024402,0.00017973,2]
[393307156,1762445442822,-500.0,0.00017973,2]
[393307157,1762445442831,-500.0,0.00017973,2]
[393307158,1762445442839,-500.0,0.00017973,2]
[393307159,1762445442849,-527.53172848,0.00017973,2]
[393307161,1762445442858,-500.0,0.00017973,2]
[393307163,1762445442868,-324.3529394,0.00017973,2]
[393307164,1762445442878,-514.51741513,0.00017973,2]
[393307165,1762445442887,-500.0,0.00017973,2]
[393307166,1762445442896,-500.0,0.00017973,2]
[393307167,1762445442906,-500.0,0.00017973,2]
[393307168,1762445442915,-500.0,0.00017973,2]
[393307169,1762445442924,-500.0,0.00017973,2]
[393307170,1762445442934,-500.0,0.00017973,2]
[393307171,1762445442944,-500.0,0.00017973,2]
[393307172,1762445442953,-503.46009537,0.00017973,2]
[393307173,1762445442962,-500.0,0.00017973,2]
[393307174,1762445442972,-500.0,0.00017973,2]
[393307175,1762445442981,-500.0,0.00017973,2]
[393307176,1762445442991,-500.0,0.00017973,2]
[393307177,1762445443000,-387.0284792,0.0001799,2]
[393307178,1762445443010,-387.0284792,0.0001799,2]
[393307179,1762445443019,-500.0,0.00017999,2]
[393307180,1762445443029,-500.0,0.00017999,2]
[393307181,1762445443040,-19800.0,0.00018,2]
[393307182,1762445443055,-373823.77039995,0.00018,2]
[393307183,1762445443071,-660.87102022,0.00018,2]
[393307185,1762445443082,-12298.12499998,0.00018,2]
[393307187,1762445443095,-5200.0,0.00018,2]
[393307188,1762445443106,-2399.94342252,0.00018,2]
[393307189,1762445443225,-233625.94150362,0.00018,2]
[393307190,1762445443270,-542581.83975936,0.00018,2]
[393307191,1762445443282,-509.09784419,0.00018,2]
[393307192,1762445443297,-1021.5,0.00018,2]
[393307193,1762445443491,-467.5619357,0.00018,2]
[393307194,1762445443503,-474618.52496963,0.00018,2]
[393307195,1762445443515,-872.26117996,0.00018,2]
[393307196,1762445443527,-702.18640805,0.00018,2]
[393307211,1762445446332,-331603.94843494,0.00018,2]
[393307212,1762445446343,-388.61022709,0.00018,2]
[393307213,1762445446355,-10776.9347374,0.00018,2]
[393307214,1762445446365,-3984.17944076,0.00018,2]
[393307215,1762445446417,-512.47561132,0.00018,2]
[393307220,1762445601598,-10891.64815684,0.00018,2]
[393307221,1762445601614,-1059.9,0.00018,2]
[393307222,1762445601625,-1535.09856,0.00018,2]
[393307223,1762445601639,-6714.98335691,0.00018,2]
[393307224,1762445602297,474.4,0.00030137,120]
[393307225,1762445652013,937.4,0.00013699,2]
[393307227,1762445681600,500.0,0.00038644,120]
[393307228,1762445682074,500.0,0.00038644,120]
[393307229,1762445682466,500.0,0.00038644,120]
[393307230,1762445682856,500.0,0.00038644,120]
[393307231,1762445683499,500.0,0.00038644,120]
[393307232,1762445683887,500.0,0.00038644,120]
[393307233,1762445684290,500.0,0.00038644,120]
[393307234,1762445685176,500.0,0.00038644,120]
[393307235,1762445685438,500.0,0.00038644,120]
[393307236,1762445685838,500.0,0.00038644,120]
[393307237,1762445686235,500.0,0.00038644,120]
[393307238,1762445686652,500.0,0.00038644,120]
[393307239,1762445687050,500.0,0.00038644,120]
[393307240,1762445687496,500.0,0.00038644,120]
[393307241,1762445687883,500.0,0.00038644,120]
[393307242,1762445688287,500.0,0.00038644,120]
[393307243,1762445688688,500.0,0.00038644,120]
[393307244,1762445689161,500.0,0.00038644,120]
[393307245,1762445689506,470.64331737,0.00038644,120]
[393307246,1762445738655,152.74,0.00038644,30]
[393307252,1762446143497,-713.06368673,0.0002,30]
[393307253,1762446143596,-2005.02845413,0.0002379,30]
[393307254,1762446143682,-165.37256016,0.000248,30]
[393307255,1762446143766,-1031.78,0.00026,30]
[393307256,1762446143852,-1031.78,0.000265,30]
[393307257,1762446143934,-300.000008,0.00027397,31]
[393307258,1762446144021,-1681.68,0.00027671,30]
[393307259,1762446144111,-182.01477032,0.0003013,30]
[393307260,1762446144206,-185744.55707326,0.00030137,30]
[393307261,1762446144294,-3807144.7234474,0.00030137,30]
[393307262,1762446152353,-1157874.81303521,0.00030137,30]
[393307263,1762446152437,-150.05,0.00030137,120]
[393307264,1762446152517,-175.37204641,0.00030137,120]
[393307265,1762446152599,-15131.59661805,0.000303,120]
[393307266,1762446152682,-335.58,0.00030685,30]
[393307267,1762446152762,-211.0,0.0003084,30]
[393307268,1762446152842,-41995.48009297,0.00030888,60]
[393307269,1762446152923,-163.0,0.00031049,120]
[393307270,1762446153005,-2783963.10820736,0.00031369,60]
[393307271,1762446156370,-2155267.97845958,0.00031369,60]
[393307272,1762446156448,-2000.0,0.000328,60]
[393307273,1762446156528,-211.0,0.0003286,30]
[393307274,1762446156608,-192.72803183,0.00032876,120]
[393307275,1762446156690,-574.87221846,0.00032876,120]
[393307276,1762446156767,-183.69568692,0.00032876,120]
[393307277,1762446156846,-500.0,0.00032876,120]
[393307278,1762446156922,-513.25043016,0.00032876,120]
[393307279,1762446157009,-999.0,0.00032876,120]
[393307280,1762446157090,-151.0,0.00032877,30]
[393307281,1762446157170,-1728.817017,0.00032877,30]
[393307282,1762446157250,-1728.817017,0.00032877,30]
[393307283,1762446157330,-1728.817017,0.00032877,30]
[393307284,1762446157409,-1728.817017,0.00032877,30]
[393307285,1762446157486,-1728.817017,0.00032877,30]
[393307286,1762446157565,-1728.817017,0.00032877,30]
[393307287,1762446157641,-1728.817017,0.00032877,30]
[393307288,1762446157719,-1728.817017,0.00032877,30]
[393307289,1762446157792,-1728.817017,0.00032877,30]
[393307290,1762446157865,-1728.817017,0.00032877,30]
[393307291,1762446157939,-1728.817017,0.00032877,30]
[393307292,1762446158014,-1728.817017,0.00032877,30]
[393307293,1762446158091,-1728.817017,0.00032877,30]
[393307294,1762446158169,-1728.817017,0.00032877,30]
[393307295,1762446158250,-1728.817017,0.00032877,30]
[393307296,1762446158331,-1728.817017,0.00032877,30]
[393307297,1762446158415,-1728.817017,0.00032877,30]
[393307298,1762446158495,-1728.817017,0.00032877,30]
[393307299,1762446158575,-1728.817017,0.00032877,30]
[393307300,1762446158654,-1728.817012,0.00032877,30]
[393307301,1762446159035,-150.0,0.00032877,60]
[393307302,1762446159115,-212.97,0.0003288,30]
[393307303,1762446159195,-268.2759612,0.0003288,30]
[393307304,1762446159274,-268.2759612,0.0003288,30]
[393307305,1762446159350,-268.2759612,0.0003288,30]
[393307306,1762446159427,-268.2759612,0.0003288,30]
[393307307,1762446159508,-268.2759612,0.0003288,30]
[393307308,1762446159587,-268.2759612,0.0003288,30]
[393307309,1762446159666,-268.2759612,0.0003288,30]
[393307310,1762446159742,-268.2759612,0.0003288,30]
[393307311,1762446159819,-268.2759612,0.0003288,30]
[393307312,1762446159894,-268.2759612,0.0003288,30]
[393307313,1762446159971,-268.2759612,0.0003288,30]
[393307314,1762446160051,-268.2759612,0.0003288,30]
[393307315,1762446160133,-268.2759612,0.0003288,30]
[393307316,1762446160222,-268.2759612,0.0003288,30]
[393307317,1762446160301,-268.2759612,0.0003288,30]
[393307318,1762446160378,-268.2759612,0.0003288,30]
[393307319,1762446160455,-268.2759612,0.0003288,30]
[393307320,1762446160532,-268.2759612,0.0003288,30]
[393307321,1762446160609,-268.2759612,0.0003288,30]
[393307322,1762446160686,-268.27,0.0003288,30]
[393307323,1762446160761,-625.9772428,0.0003288,30]
[393307324,1762446160838,-625.9772428,0.0003288,30]
[393307325,1762446160914,-625.9772428,0.0003288,30]
[393307326,1762446160991,-625.9772428,0.0003288,30]
[393307327,1762446161067,-625.9772428,0.0003288,30]
[393307328,1762446161143,-625.9772428,0.0003288,30]
[393307329,1762446161219,-625.9772428,0.0003288,30]
[393307330,1762446161295,-625.9772428,0.0003288,30]
[393307331,1762446161371,-625.9772428,0.0003288,30]
[393307332,1762446161444,-625.9772428,0.0003288,30]
[393307333,1762446161521,-625.9772428,0.0003288,30]
[393307334,1762446161597,-625.9772428,0.0003288,30]
[393307335,1762446161679,-625.9772428,0.0003288,30]
[393307336,1762446161759,-625.9772428,0.0003288,30]
[393307337,1762446161843,-625.9772428,0.0003288,30]
[393307338,1762446161917,-625.9772428,0.0003288,30]
[393307339,1762446161989,-625.9772428,0.0003288,30]
[393307340,1762446162064,-625.9772428,0.0003288,30]
[393307341,1762446162142,-625.9772428,0.0003288,30]
[393307342,1762446162223,-625.97,0.0003288,30]
[393307343,1762446162310,-150.0,0.00033014,60]
[393307344,1762446162393,-1786432.11396205,0.00033136,120]
[393307345,1762446194159,-3152798.97270489,0.00033136,120]
[393307346,1762446194244,-150.0,0.00033151,60]
[393307347,1762446194329,-160.68354143,0.00033288,60]
[393307348,1762446194414,-151.0,0.00033425,30]
[393307349,1762446194501,-215.95,0.00034,30]
[393307350,1762446194584,-200.0,0.00034,120]
[393307351,1762446194669,-152.0,0.00034028,30]
[393307352,1762446194753,-1121.21301196,0.00034645,30]
[393307353,1762446194837,-1421.10574742,0.00034645,30]
[393307354,1762446194919,-1124.09298288,0.00034645,30]
[393307355,1762446195006,-1681.68,0.00034867,30]
[393307356,1762446195094,-211.0,0.0003488,30]
[393307357,1762446195182,-356.00180774,0.00035,30]
[393307358,1762446195274,-640.0,0.00035,120]
[393307359,1762446195361,-158.24,0.00035,60]
[393307360,1762446195445,-3413.46,0.00035,30]
[393307361,1762446195535,-999.0,0.00035616,120]
[393307362,1762446195620,-151.0,0.00035616,31]
[393307363,1762446195702,-151.0,0.00035616,31]
[393307364,1762446195790,-158.17,0.00035836,60]
[393307365,1762446195874,-168.32,0.00035849,60]
[393307366,1762446195965,-155.75,0.00035877,60]
[393307367,1762446196051,-155.99,0.00035886,60]
[393307368,1762446196134,-158.18,0.00035936,60]
[393307369,1762446196224,-168.32,0.00035949,60]
[393307370,1762446196311,-272.56,0.00035951,60]
[393307371,1762446196395,-155.99,0.00035986,60]
[393307372,1762446196475,-479.12027579,0.00036,120]
[393307373,1762446196554,-200.0,0.00036,120]
[393307374,1762446196647,-168.32,0.00036049,60]
[393307375,1762446196733,-156.01,0.00036086,60]
[393307376,1762446196812,-168.33363414,0.00036149,60]
[393307377,1762446196895,-402.25018035,0.000365,120]
[393307378,1762446196976,-15626.51569316,0.000367,30]
[393307379,1762446197059,-500.0,0.0003671,120]
[393307380,1762446197138,-500.0,0.0003671,120]
[393307381,1762446197220,-500.0,0.0003671,120]
[393307382,1762446197319,-500.0,0.0003671,120]
[393307383,1762446197400,-500.0,0.0003671,120]
[393307384,1762446197479,-500.0,0.0003671,120]
[393307385,1762446197560,-227.0,0.0003671,120]
[393307386,1762446197643,-502.0,0.0003671,120]
[393307387,1762446197721,-3032.39816,0.00036756,30]
[393307388,1762446197806,-159.51225002,0.00036767,30]
[393307389,1762446197883,-211.0,0.0003689,30]
[393307390,1762446197962,-358.37404727,0.000369,30]
[393307391,1762446198038,-150.0,0.00036904,120]
[393307392,1762446198114,-159.51225002,0.00036932,30]
[393307393,1762446198191,-249.05214123,0.00037,120]
[393307394,1762446198267,-652.0,0.00037,120]
[393307395,1762446198348,-250.0,0.00037,120]
[393307396,1762446198429,-500000.0,0.00037,30]
[393307397,1762446198508,-3265.52929201,0.00037,30]
[393307398,1762446198586,-4964.0,0.00037,120]
[393307399,1762446198667,-159.51225002,0.00037096,30]
[393307400,1762446198746,-258188.07529935,0.000371,30]
[393307401,1762446198823,-5058.79489,0.00037164,30]
[393307402,1762446198905,-162.50136641,0.000372,120]
[393307403,1762446198984,-162.50136641,0.000372,120]
[393307404,1762446199063,-162.50136641,0.000372,120]
[393307405,1762446199138,-162.50136641,0.000372,120]
[393307406,1762446199223,-159.51225002,0.0003726,30]
[393307407,1762446199300,-340.88,0.000373,120]
[393307408,1762446199380,-150.0,0.00037383,30]
[393307409,1762446199460,-479.61563764,0.00037383,30]
[393307410,1762446199542,-150.0,0.00037383,30]
[393307411,1762446199618,-247.04509665,0.00037383,30]
[393307412,1762446199696,-150.0,0.00037383,30]
[393307413,1762446199773,-1465.94036031,0.00037383,30]
[393307414,1762446199865,-159.51225002,0.00037425,30]
[393307415,1762446199950,-300.0,0.00037462,84]
[393307416,1762446200033,-134000.0,0.000375,120]
[393307417,1762446200117,-159.51225002,0.00037589,30]
[393307418,1762446200208,-150.0,0.00037656,120]
[393307419,1762446200292,-500.0,0.0003766,30]
[393307420,1762446200374,-500.0,0.0003766,30]
[393307421,1762446200454,-544.40216904,0.0003766,30]
[393307422,1762446200542,-500.0,0.00037704,120]
[393307423,1762446200624,-150.0,0.00037751,120]
[393307424,1762446200705,-159.51225002,0.00037753,30]
[393307425,1762446200786,-150.0,0.00037806,120]
[393307426,1762446200868,-150.0,0.00037862,120]
[393307427,1762446200949,-150.0,0.00037868,120]
[393307428,1762446201027,-287.207,0.00037871,30]
[393307429,1762446201106,-1000.0,0.000379,30]
[393307430,1762446201185,-159.51225002,0.00037918,30]
[393307431,1762446201264,-8396.91369412,0.0003798,30]
[393307432,1762446201344,-200000.0,0.0003799,120]
[393307433,1762446201424,-975.95512815,0.00038,30]
[393307434,1762446201502,-162.0,0.00038,120]
[393307435,1762446201578,-2000.0,0.00038,120]
[393307436,1762446201653,-2782.80668404,0.00038,120]
[393307437,1762446201727,-544.68,0.00038,60]
[393307438,1762446201800,-380.0,0.00038,120]
[393307439,1762446201874,-50000.0,0.00038,45]
[393307440,1762446201945,-2320.0,0.00038,30]
[393307441,1762446202017,-500.0,0.00038,45]
[393307442,1762446202094,-288.0,0.00038,120]
[393307443,1762446202171,-314.67313477,0.00038,120]
[393307444,1762446202249,-718.0,0.00038,120]
[393307445,1762446202330,-215.65596555,0.00038,30]
[393307446,1762446202409,-385.99007272,0.00038,90]
[393307447,1762446202493,-500.0,0.00038013,120]
[393307448,1762446202575,-500.0,0.00038013,120]
[393307449,1762446202654,-500.0,0.00038023,120]
[393307450,1762446202735,-259.16,0.00038023,120]
[393307451,1762446202815,-15466.82331295,0.0003804,30]
[393307452,1762446202893,-150.0,0.00038045,120]
[393307453,1762446202973,-159.51225002,0.00038082,30]
[393307454,1762446203053,-214.96687417,0.000381,33]
[393307455,1762446203135,-16982.87304682,0.0003812,30]
[393307456,1762446203218,-537.55096685,0.0003812,30]
[393307457,1762446203300,-150.0,0.00038143,120]
[393307458,1762446203382,-500.0,0.0003815,120]
[393307459,1762446203465,-500.0,0.0003815,120]
[393307460,1762446203546,-500.0,0.0003815,120]
[393307461,1762446203625,-4933.0,0.00038167,45]
[393307462,1762446203703,-213.86543034,0.00038241,31]
[393307463,1762446203782,-159.51225002,0.00038247,30]
[393307464,1762446203860,-500.0,0.00038287,120]
[393307465,1762446203941,-500.0,0.00038287,120]
[393307466,1762446204022,-500.0,0.00038287,120]
[393307467,1762446204104,-647.94739474,0.00038287,120]
[393307468,1762446204189,-500.0,0.00038288,120]
[393307469,1762446204277,-500.0,0.00038288,120]
[393307470,1762446204366,-500.0,0.00038288,120]
[393307471,1762446204454,-500.0,0.00038288,120]
[393307472,1762446204546,-500.0,0.00038288,120]
[393307473,1762446204632,-500.0,0.00038288,120]
[393307474,1762446204716,-500.0,0.00038288,120]
[393307475,1762446204796,-500.0,0.00038288,120]
[393307476,1762446204879,-500.0,0.00038288,120]
[393307477,1762446204962,-500.0,0.00038288,120]
[393307478,1762446205046,-165.25509287,0.00038288,120]
[393307479,1762446205127,-500.0,0.00038291,120]
[393307480,1762446205211,-500.0,0.00038292,120]
[393307481,1762446205297,-500.0,0.00038292,120]
[393307482,1762446205380,-500.0,0.00038292,120]
[393307483,1762446205464,-407.06,0.00038292,120]
[393307484,1762446205543,-501.61644277,0.000383,30]
[393307485,1762446205646,-23494.478645,0.000383,30]
[393307486,1762446207454,-255.3,0.00038312,120]
[393307487,1762446207567,-500.0,0.00038313,30]
[393307488,1762446207652,-377.94170616,0.00038313,120]
[393307489,1762446207729,-500.0,0.00038313,120]
[393307490,1762446207807,-500.0,0.00038356,30]
[393307491,1762446207885,-500.0,0.00038356,30]
[393307492,1762446207964,-494.97822766,0.00038356,30]
[393307493,1762446208041,-518.70597631,0.00038356,120]
[393307494,1762446208120,-999.0,0.00038356,120]
[393307495,1762446208197,-613.67659826,0.0003838,120]
[393307496,1762446208285,-159.51225002,0.00038384,30]
[393307497,1762446208363,-1000.0,0.000385,120]
[393307498,1762446208442,-1842.8,0.000385,120]
[393307499,1762446208520,-6826.16327015,0.000385,30]
[393307500,1762446208597,-5149.6052649,0.000385,30]
[393307501,1762446208688,-1054.62486018,0.0003855,120]
[393307502,1762446208763,-205.30190496,0.00038553,120]
[393307503,1762446208838,-293.94820495,0.00038553,120]
[393307504,1762446208913,-1500.0,0.0003856,30]
[393307505,1762446208987,-1500.0,0.0003856,30]
[393307506,1762446209059,-500.0,0.0003856,30]
[393307507,1762446209136,-521530.49821149,0.00038561,30]
[393307508,1762446234808,-1473168.64671928,0.00038561,30]
[393307509,1762446234877,-150.0,0.00038562,120]
[393307510,1762446234951,-466.0,0.00038565,30]
[393307511,1762446235025,-974.4795522,0.00038569,30]
[393307512,1762446235095,-253722.71684704,0.0003857,30]
[393307513,1762446235164,-37738.6404297,0.00038574,30]
[393307514,1762446235233,-756.36406761,0.00038574,30]
[393307515,1762446235304,-1000.0,0.00038574,30]
[393307516,1762446235375,-2117162.00561544,0.00038582,30]
[393307517,1762446235446,-2401.00396764,0.000386,60]
[393307518,1762446235518,-1000.0,0.00038603,30]
[393307519,1762446235596,-1000.0,0.00038603,30]
[393307520,1762446235665,-1000.0,0.00038603,30]
[393307521,1762446235739,-1000.0,0.00038603,30]
[393307522,1762446235810,-1191.0,0.00038603,30]
[393307523,1762446235881,-1382.0,0.0003862,30]
[393307524,1762446235951,-500.0,0.00038621,30]
[393307525,1762446236021,-502.67597498,0.00038624,30]
[393307526,1762446236088,-414.0,0.00038624,30]
[393307527,1762446236157,-339.66945016,0.00038624,30]
[393307528,1762446236227,-500.07371753,0.0003863,30]
[393307529,1762446236298,-765.0,0.00038633,30]
[393307530,1762446236368,-500.0,0.00038633,120]
[393307531,1762446236441,-1102365.72365842,0.00038635,30]
[393307532,1762446255229,-150.0,0.00037383,30]
[393307533,1762446255299,-167.63607732,0.00037383,30]
[393307534,1762446255649,-2762197.42619617,0.00038635,30]
[393307535,1762446255720,-2237484.93772651,0.00038635,30]
[393307536,1762446259602,-1627078.21212808,0.00038635,30]
[393307537,1762446259670,-3372921.78787192,0.00038635,120]
[393307538,1762446263625,-6463.76144126,0.00038577,120]
[393307539,1762446263697,-491641.36198267,0.00038635,120]
[393307540,1762446263767,-1349.53957859,0.00038639,30]
[393307541,1762446263837,-571.725,0.00038641,30]
[393307542,1762446263908,-300.0,0.00038643,91]
[393307543,1762446263979,-514.03128724,0.00038644,30]
[393307544,1762446264051,-497.81458398,0.00038644,30]
[393307545,1762446264124,-274.03002099,0.00038644,30]
[393307546,1762446264205,-542.76013005,0.00038646,60]
[393307547,1762446264278,-602.34153,0.0003865,30]
[393307548,1762446264355,-500.0,0.00038656,30]
[393307549,1762446264430,-500.0,0.00038656,30]
[393307550,1762446264502,-500.0,0.00038656,30]
[393307551,1762446264572,-500.0,0.00038656,30]
[393307552,1762446264644,-500.0,0.00038656,30]
[393307553,1762446264715,-500.0,0.00038656,30]
[393307554,1762446264784,-500.0,0.00038656,30]
[393307555,1762446264850,-579.92397617,0.00038656,30]
[393307556,1762446264919,-529.1273476,0.00038666,30]
[393307557,1762446264986,-151.17829658,0.00038671,30]
[393307558,1762446265054,-333.24136416,0.00038678,60]
[393307559,1762446265124,-2000.0,0.00038696,120]
[393307560,1762446265191,-169.40800456,0.000387,120]
[393307561,1762446265258,-185.06951884,0.000387,120]
[393307562,1762446265332,-1720.4252236,0.000387,120]
[393307563,1762446265401,-268.67349644,0.000387,120]
[393307564,1762446265470,-201.75668364,0.000387,120]
[393307565,1762446265538,-184.81221801,0.000387,120]
[393307566,1762446265607,-5036.0,0.000387,117]
[393307567,1762446265674,-169.68,0.000387,60]
[393307568,1762446265741,-5024.3684058,0.00038707,120]
[393307569,1762446265807,-1500.0,0.0003871,30]
[393307570,1762446265878,-520.0,0.00038713,30]
[393307571,1762446265950,-720.58,0.00038713,30]
[393307572,1762446266019,-720.58,0.00038713,30]
[393307573,1762446266091,-720.58,0.00038713,30]
[393307574,1762446266162,-720.58,0.00038713,30]
[393307575,1762446266235,-1500.0,0.0003873,30]
[393307576,1762446266305,-1500.0,0.0003873,30]
[393307577,1762446266375,-10000.0,0.000388,120]
[393307578,1762446266450,-150.0,0.00038803,120]
[393307579,1762446266521,-33815.18513538,0.0003884,50]
[393307580,1762446266587,-1977.4326,0.00038888,30]
[393307581,1762446266651,-212.0,0.0003891,30]
[393307582,1762446266720,-150.0,0.00038927,120]
[393307583,1762446266788,-720.58,0.00038987,30]
[393307584,1762446266855,-720.58,0.00038987,30]
[393307585,1762446266919,-150.0,0.00038989,120]
[393307586,1762446266987,-150.0,0.00039,120]
[393307587,1762446267052,-152.04514321,0.00039,30]
[393307588,1762446267118,-215.95,0.00039,30]
[393307589,1762446267185,-1261.76019858,0.00039,120]
[393307590,1762446267254,-14621.3,0.000391,120]
[393307591,1762446267323,-150.0,0.00039176,120]
[393307592,1762446267389,-720.58,0.00039261,30]
[393307593,1762446267462,-720.58,0.00039261,30]
[393307594,1762446267533,-150.0,0.00039371,120]
[393307595,1762446267941,-2000.0,0.000394,120]
[393307596,1762446268020,-150.0,0.00039424,120]
[393307597,1762446268088,-150.0,0.00039447,120]
[393307598,1762446268159,-500.0,0.00039504,30]
[393307599,1762446268229,-720.58,0.00039535,30]
[393307600,1762446268297,-720.58,0.00039535,30]
[393307601,1762446268374,-150.0,0.00039575,120]
[393307602,1762446268445,-150.0,0.00039603,120]
[393307603,1762446268516,-150.0,0.00039628,120]
[393307604,1762446268588,-169.40800456,0.000398,120]
[393307605,1762446268660,-1720.4252236,0.000398,120]
[393307606,1762446268727,-268.67349644,0.000398,120]
[393307607,1762446268792,-201.75668364,0.000398,120]
[393307608,1762446268854,-184.81221801,0.000398,120]
[393307609,1762446268919,-720.58,0.00039809,30]
[393307610,1762446268982,-720.58,0.00039809,30]
[393307611,1762446269047,-20000.0,0.000399,30]
[393307612,1762446269110,-20000.0,0.000399,120]
[393307613,1762446269172,-150.0,0.00039955,120]
[393307614,1762446269243,-400.0,0.0004,120]
[393307615,1762446269307,-202.47,0.0004,30]
[393307616,1762446269384,-500.0,0.0004,30]
[393307617,1762446269472,-150.0,0.0004,120]
[393307618,1762446269547,-1000.0,0.0004,120]
[393307619,1762446269620,-400.0,0.0004,120]
[393307620,1762446269689,-5270.80907742,0.0004,120]
[393307621,1762446269757,-150.0,0.0004,60]
[393307622,1762446269827,-1920.24182141,0.0004,30]
[393307623,1762446269898,-1887.43312798,0.0004,120]
[393307624,1762446269972,-6261.0,0.0004,90]
[393307625,1762446270041,-2346.25089336,0.0004,60]
[393307626,1762446270108,-648.0,0.0004,60]
[393307627,1762446270176,-1550.07818469,0.0004,120]
[393307628,1762446270244,-9222.45445,0.0004,120]
[393307629,1762446270313,-82267.48817856,0.0004,120]
[393307630,1762446270380,-1009.0,0.0004,120]
[393307631,1762446270446,-50000.0,0.0004,120]
[393307632,1762446270519,-5000.0,0.0004,120]
[393307633,1762446270585,-6920.09952019,0.0004,120]
[393307634,1762446270651,-293.6891876,0.0004,120]
[393307635,1762446270721,-38900.0,0.0004,60]
[393307636,1762446270788,-542.98989312,0.0004,120]
[393307637,1762446270856,-542.98989312,0.0004,120]
[393307638,1762446270923,-312.0,0.0004,90]
[393307639,1762446270991,-1977.52,0.0004,120]
[393307640,1762446271057,-197.26,0.0004,120]
[393307641,1762446271122,-581.1,0.0004,120]
[393307642,1762446271187,-642.81,0.0004,120]
[393307643,1762446271252,-15000.0,0.0004,120]
[393307644,1762446271316,-204.42,0.0004,120]
[393307645,1762446271383,-181.93,0.0004,120]
[393307646,1762446271449,-525.77,0.0004,120]
[393307647,1762446271515,-273.7,0.0004,120]
[393307648,1762446271580,-508.44,0.0004,120]
[393307649,1762446271638,-192.19,0.0004,120]
[393307650,1762446271698,-720.58,0.00040083,30]
[393307651,1762446271761,-720.58,0.00040083,30]
[393307652,1762446271824,-2000.0,0.00040089,120]
[393307653,1762446271892,-156.04,0.00040111,120]
[393307654,1762446271958,-312.0,0.00040174,90]
[393307655,1762446272025,-150.0,0.00040203,120]
[393307656,1762446272088,-4816.58,0.000403,120]
[393307657,1762446272154,-720.58,0.00040357,30]
[393307658,1762446272219,-720.58,0.00040357,30]
[393307659,1762446272287,-150.0,0.00040384,120]
[393307660,1762446272351,-500.0,0.00040386,30]
[393307661,1762446272415,-231.83723108,0.00040563,120]
[393307662,1762446272481,-720.58,0.00040631,30]
[393307663,1762446272549,-720.58,0.00040631,30]
[393307664,1762446272615,-2000.0,0.00040777,120]
[393307665,1762446272679,-20000.0,0.000409,120]
[393307666,1762446272745,-720.58,0.00040905,30]
[393307667,1762446272808,-720.58,0.00040905,30]
[393307668,1762446272875,-1633.349,0.00040917,59]
[393307669,1762446272939,-212.0,0.0004093,30]
[393307670,1762446273005,-150.0,0.00041,120]
[393307671,1762446273072,-674.31,0.00041,120]